bitfinex/quotes_SOLUSD_20250326
["timestamp","ask_amount","ask_price","bid_price","bid_amount"]
[1743017131357,0.03,137.34,137.28,1.5027]
[1743017131583,24.16267577,137.31,137.28,1.5027]
[1743017132371,106.16267577,137.3,137.28,1.5027]
[1743017132681,7.2838,137.29,137.28,0.0001]
[1743017135159,31.44647577,137.29,137.28,0.0001]
[1743017135376,50.09612463,137.29,137.28,0.0001]
[1743017135780,50.2382862,137.29,137.28,0.0001]
[1743017136078,50.09612463,137.29,137.28,0.0001]
[1743017136764,50.2382862,137.29,137.28,0.0001]
[1743017137375,74.40096197,137.29,137.28,0.0001]
[1743017137576,0.14216157,137.27,137.21,1.7001]
[1743017137763,24.16267577,137.23,137.21,0.063]
[1743017138683,7.2875,137.22,137.21,0.063]
[1743017138881,31.45017577,137.22,137.21,0.063]
[1743017140474,7.2875,137.22,137.21,0.063]
[1743017140875,7.287,137.23,137.21,0.063]
[1743017141581,31.44967577,137.23,137.21,0.063]
[1743017142191,7.287,137.23,137.21,0.063]
[1743017143583,31.44967577,137.23,137.21,0.063]
[1743017143782,113.44967577,137.23,137.21,0.063]
[1743017145588,24.16267577,137.22,137.21,0.063]
[1743017145768,113.44967577,137.23,137.21,0.063]
[1743017146171,89.287,137.23,137.21,0.063]
[1743017147089,113.44967577,137.23,137.21,0.063]
[1743017147393,89.287,137.23,137.21,0.063]
[1743017147691,7.287,137.23,137.21,0.063]
[1743017147890,7.2867,137.24,137.21,0.063]
[1743017148396,31.44937577,137.24,137.21,0.063]
[1743017151079,7.2867,137.24,137.21,0.063]
[1743017151894,31.44937577,137.24,137.21,0.063]
[1743017153893,24.16267577,137.22,137.21,0.063]
[1743017154593,49.66557577,137.24,137.21,0.063]
[1743017154797,31.44937577,137.24,137.21,0.063]
[1743017155096,7.2867,137.24,137.21,0.063]
[1743017155493,31.44937577,137.24,137.21,0.063]
[1743017156087,7.2867,137.24,137.21,0.063]
[1743017156492,7.2867,137.24,137.22,24.16267577]
[1743017158002,7.2867,137.24,137.21,24.22567577]
[1743017158300,82.0,137.27,137.23,24.16267577]
[1743017158499,82.0,137.27,137.25,24.16267577]
[1743017159198,0.03,137.28,137.26,24.16267577]
[1743017159394,0.03,137.28,137.27,24.16267577]
[1743017159697,0.03,137.28,137.26,24.16267577]
[1743017159898,7.3144,137.28,137.26,24.16267577]
[1743017160094,0.03,137.28,137.26,24.16267577]
[1743017161399,0.03,137.28,137.25,24.16267577]
[1743017162088,0.03,137.28,137.26,24.16267577]
[1743017163327,0.03,137.28,137.27,24.16267577]
[1743017164394,0.03,137.28,137.27,31.44757577]
[1743017164805,0.03,137.28,137.27,24.16267577]
[1743017166194,0.03,137.28,137.27,20.0]
[1743017166401,0.03,137.28,137.27,44.16267577]
[1743017167595,0.03,137.28,137.27,51.58973734]
[1743017167802,0.03,137.28,137.27,57.95173734]
[1743017168194,0.03,137.28,137.27,82.11441311]
[1743017168597,0.03,137.28,137.27,57.95173734]
[1743017168806,0.03,137.28,137.27,101.04838511]
[1743017169213,0.03,137.28,137.27,109.32018511]
[1743017170323,0.03,137.28,137.27,27.8738]
[1743017170494,0.03,137.28,137.27,32.17863734]
[1743017170694,0.03,137.28,137.27,32.03647577]
[1743017172528,0.03,137.28,137.27,39.46353734]
[1743017172904,0.03,137.28,137.27,39.60569891]
[1743017173097,0.03,137.28,137.27,82.56018511]
[1743017175021,0.03,137.28,137.27,32.17863734]
[1743017177322,0.03,137.28,137.27,39.46353734]
[1743017178218,0.03,137.28,137.27,63.76837468]
[1743017179704,0.03,137.28,137.27,39.60569891]
[1743017180102,0.03,137.28,137.27,39.46353734]
[1743017181402,0.03,137.28,137.27,39.60569891]
[1743017181724,0.03,137.28,137.27,63.76837468]
[1743017181932,0.03,137.28,137.27,82.56018511]
[1743017182429,0.03,137.28,137.27,82.62318511]
[1743017183306,0.03,137.28,137.27,58.46050934]
[1743017184425,0.03,137.28,137.27,82.62318511]
[1743017185314,0.03,137.28,137.27,58.46050934]
[1743017185703,0.03,137.28,137.27,82.62318511]
[1743017187015,0.03,137.28,137.27,111.65652682]
[1743017187813,0.03,137.28,137.27,49.76957222]
[1743017188828,0.03,137.28,137.27,30.97776179]
[1743017189026,0.03,137.28,137.27,15.53473865]
[1743017189324,0.03,137.28,137.27,0.063]
[1743017190127,0.03,137.28,137.27,15.53473865]
[1743017190325,0.03,137.28,137.27,22.81963865]
[1743017190715,0.03,137.28,137.27,23.10396179]
[1743017192048,0.03,137.28,137.27,15.53473865]
[1743017192412,0.03,137.28,137.27,20.063]
[1743017192751,0.03,137.28,137.27,35.53473865]
[1743017192929,0.03,137.28,137.27,44.24896287]
[1743017194157,0.03,137.28,137.27,51.53386287]
[1743017195130,0.03,137.28,137.27,76.00414888]
[1743017195429,0.03,137.28,137.27,51.81818601]
[1743017196440,0.03,137.28,137.27,44.24896287]
[1743017196823,0.03,137.28,137.27,44.39112444]
[1743017197531,0.03,137.28,137.27,51.67602444]
[1743017199245,0.03,137.28,137.27,70.60999644]
[1743017199453,0.03,137.28,137.27,94.79595931]
[1743017201451,0.03,137.28,137.27,70.60999644]
[1743017202553,0.03,137.28,137.27,51.96034758]
[1743017203552,0.03,137.28,137.27,70.60999644]
[1743017206344,0.03,137.28,137.27,94.79595931]
[1743017206855,0.03,137.28,137.27,70.60999644]
[1743017207951,0.03,137.28,137.27,44.39112444]
[1743017211048,0.03,137.28,137.27,20.20516157]
[1743017211250,0.03,137.28,137.27,0.063]
[1743017211640,24.21596287,137.28,137.27,0.063]
[1743017211958,7.3143,137.28,137.27,0.063]
[1743017212143,0.03,137.28,137.27,44.24896287]
[1743017212759,0.03,137.28,137.27,24.24896287]
[1743017212938,0.03,137.28,137.27,35.53961581]
[1743017213540,0.03,137.28,137.27,35.82393895]
[1743017213853,0.03,137.28,137.27,105.01530219]
[1743017214246,0.03,137.28,137.27,123.80711262]
[1743017214837,0.03,137.28,137.27,94.77104691]
[1743017216262,0.03,137.34,137.31,0.28432314]
[1743017216471,0.03,137.34,137.33,24.17350667]
[1743017217166,0.03,137.34,137.33,24.45782981]
[1743017217363,0.03,137.34,137.33,67.42314691]
[1743017217664,0.03,137.34,137.33,73.20832097]
[1743017218067,0.03,137.34,137.33,43.24964024]
[1743017218265,0.03,137.34,137.33,50.53134024]
[1743017218445,0.03,137.34,137.33,24.45782981]
[1743017224372,0.03,137.34,137.33,74.70484691]
[1743017224759,0.03,137.34,137.33,50.53134024]
[1743017226079,0.03,137.34,137.33,74.70484691]
[1743017226570,0.03,137.37,137.36,20.14216157]
[1743017226872,0.03,137.41,137.4,20.14216157]
[1743017227049,0.03,137.41,137.4,44.31566824]
[1743017228171,0.03,137.41,137.4,87.42314691]
[1743017228351,0.03,137.42,137.41,19.07613357]
[1743017228551,0.03,137.42,137.41,74.70054691]
[1743017228765,0.03,137.42,137.41,50.52704024]
[1743017229772,0.03,137.42,137.4,44.17350667]
[1743017230274,0.03,137.42,137.41,20.0]
[1743017230779,0.03,137.42,137.39,24.31566824]
[1743017230954,0.03,137.42,137.37,18.79181043]
[1743017230955,24.20350667,137.42,137.38,24.17350667]
[1743017231156,0.03,137.42,137.39,20.0]
[1743017231774,7.3069,137.42,137.39,20.0]
[1743017232155,49.67280667,137.42,137.38,24.17350667]
[1743017232354,24.17350667,137.4,137.35,24.31566824]
[1743017233172,24.17350667,137.38,137.34,24.17350667]
[1743017233374,24.17350667,137.37,137.32,24.17350667]
[1743017233567,25.74870667,137.37,137.32,24.17350667]
[1743017233755,7.2801,137.36,137.33,24.17350667]
[1743017234973,90.8727,137.41,137.36,0.28432314]
[1743017235282,7.3071,137.42,137.39,24.17350667]
[1743017235461,0.03,137.42,137.39,24.17350667]
[1743017236576,0.03,137.42,137.4,24.17350667]
[1743017236776,0.03,137.42,137.41,24.17350667]
[1743017236972,0.03,137.42,137.41,38.62139365]
[1743017237168,0.03,137.42,137.4,58.62139365]
[1743017238383,0.03,137.42,137.4,20.0]
[1743017238680,0.03,137.42,137.4,58.62139365]
[1743017239878,0.03,137.42,137.41,38.62139365]
[1743017240561,0.03,137.42,137.41,38.76355522]
[1743017241477,0.03,137.42,137.41,64.97492722]
[1743017241684,0.03,137.42,137.41,103.59632087]
[1743017242273,0.03,137.42,137.41,64.97492722]
[1743017242663,0.03,137.42,137.41,38.90571679]
[1743017243280,0.03,137.42,137.41,38.76355522]
[1743017243479,0.03,137.42,137.41,38.90571679]
[1743017244098,0.03,137.42,137.41,38.76355522]
[1743017244267,0.03,137.42,137.39,0.14216157]
[1743017244463,0.03,137.42,137.38,121.15839365]
[1743017245295,0.03,137.42,137.41,38.62139365]
[1743017245471,0.03,137.42,137.41,38.76355522]
[1743017246188,0.03,137.42,137.41,38.62139365]
[1743017246577,0.03,137.42,137.41,38.76355522]
[1743017246979,0.03,137.42,137.41,46.04095522]
[1743017247389,0.03,137.42,137.41,46.18311679]
[1743017247572,0.03,137.42,137.41,84.80451044]
[1743017247969,0.03,137.42,137.41,46.18311679]
[1743017248181,0.03,137.42,137.41,103.59632087]
[1743017248502,0.03,137.42,137.41,186.07032087]
[1743017248664,0.03,137.42,137.41,187.67372087]
[1743017248867,0.03,137.48,137.45,0.14216157]
[1743017249067,0.03,137.48,137.47,38.62139365]
[1743017249278,0.03,137.48,137.46,38.62139365]
[1743017250184,0.03,137.48,137.47,38.62139365]
[1743017252291,0.03,137.48,137.45,0.14216157]
[1743017252292,0.03,137.48,137.45,20.14216157]
[1743017252505,0.03,137.48,137.45,20.0]
[1743017253586,38.65139365,137.48,137.43,38.76355522]
[1743017254375,7.2743,137.47,137.43,38.76355522]
[1743017254997,38.62139365,137.46,137.4,0.14216157]
[1743017255181,38.62139365,137.46,137.42,20.0]
[1743017255383,64.08139365,137.47,137.43,38.62139365]
[1743017255698,25.46,137.47,137.43,38.62139365]
[1743017256395,7.2743,137.47,137.44,38.62139365]
[1743017256781,64.08139365,137.47,137.44,20.0]
[1743017256990,24.13232285,137.46,137.42,24.13232285]
[1743017257378,24.13232285,137.46,137.42,44.13232285]
[1743017257897,25.46,137.47,137.43,24.13232285]
[1743017258102,7.2743,137.47,137.43,24.13232285]
[1743017258788,24.13232285,137.46,137.42,44.13232285]
[1743017259188,24.13232285,137.45,137.41,0.20516157]
[1743017259388,49.59232285,137.47,137.42,24.13232285]
[1743017259885,31.40662285,137.47,137.42,24.13232285]
[1743017260093,7.2743,137.47,137.43,24.13232285]
[1743017261797,31.40662285,137.47,137.42,24.13232285]
[1743017262006,24.13232285,137.45,137.41,0.063]
[1743017262883,7.2759,137.44,137.41,24.19532285]
[1743017264407,7.2756,137.45,137.41,24.19532285]
[1743017264710,24.13232285,137.46,137.42,24.13232285]
[1743017264711,31.40722285,137.46,137.42,24.13232285]
[1743017265516,89.2744,137.47,137.42,31.40902285]
[1743017265690,7.2744,137.47,137.43,24.13232285]
[1743017266407,31.40672285,137.47,137.43,24.13232285]
[1743017267820,24.13232285,137.45,137.41,0.063]
[1743017268502,24.13232285,137.45,137.41,24.19532285]
[1743017268903,24.13232285,137.45,137.41,0.063]
[1743017269299,24.13232285,137.46,137.41,24.19532285]
[1743017269903,7.2753,137.45,137.41,24.19532285]
[1743017270194,106.13232285,137.47,137.42,24.27448442]
[1743017270397,7.3039,137.48,137.44,44.13232285]
[1743017270590,24.13232285,137.47,137.42,24.27448442]
[1743017270802,24.13232285,137.46,137.41,24.19532285]
[1743017271599,24.13232285,137.44,137.41,0.063]
[1743017271894,7.2761,137.44,137.41,0.063]
[1743017272509,31.40792285,137.45,137.41,0.063]
[1743017272815,7.2756,137.45,137.41,24.19532285]
[1743017273212,7.2747,137.47,137.43,24.13232285]
[1743017273402,31.40702285,137.47,137.42,24.27448442]
[1743017275508,24.13232285,137.45,137.41,0.063]
[1743017275713,24.13232285,137.42,137.41,0.063]
[1743017275911,48.2646457,137.42,137.38,0.063]
[1743017276218,24.13232285,137.39,137.38,0.063]
[1743017276417,31.41082285,137.39,137.38,0.063]
[1743017277204,1.5218,137.38,137.3,82.474]
[1743017277405,24.13232285,137.34,137.3,0.14216157]
[1743017277610,24.13232285,137.35,137.31,24.13232285]
[1743017278003,24.13232285,137.36,137.31,24.13232285]
[1743017278818,24.13232285,137.35,137.31,24.13232285]
[1743017279015,24.13232285,137.35,137.3,24.27448442]
[1743017279506,24.13232285,137.34,137.3,24.27448442]
[1743017280112,7.2796,137.37,137.3,24.27448442]
[1743017280321,24.13232285,137.35,137.3,24.27448442]
[1743017280932,7.2796,137.37,137.28,106.66932285]
[1743017280933,24.13232285,137.33,137.28,106.66932285]
[1743017281100,24.13232285,137.33,137.28,24.19532285]
[1743017281301,24.13232285,137.33,137.29,24.13232285]
[1743017281498,89.2803,137.36,137.28,0.063]
[1743017281499,24.13232285,137.3,137.28,0.063]
[1743017282104,24.13232285,137.31,137.28,0.063]
[1743017282730,24.13232285,137.3,137.28,0.063]
[1743017283029,7.2826,137.32,137.28,0.063]
[1743017283030,24.13232285,137.31,137.28,0.063]
[1743017283526,7.2826,137.32,137.28,0.063]
[1743017283527,24.13232285,137.3,137.28,0.063]
[1743017283711,24.13232285,137.29,137.28,0.063]
[1743017283910,24.13232285,137.3,137.28,0.063]
[1743017284407,24.13232285,137.29,137.28,0.063]
[1743017284826,24.13232285,137.3,137.28,0.063]
[1743017285008,106.13232285,137.31,137.28,0.063]
[1743017285837,8.9177,137.32,137.28,24.19532285]
[1743017285838,1.6354,137.32,137.28,24.19532285]
[1743017286124,24.13232285,137.33,137.28,24.19532285]
[1743017286827,88.6144,137.34,137.28,31.47922285]
[1743017287011,82.0,137.34,137.3,24.13232285]
[1743017287217,106.13232285,137.34,137.29,24.13232285]
[1743017287417,24.13232285,137.33,137.28,24.19532285]
[1743017287722,24.13232285,137.33,137.29,24.13232285]
[1743017289236,31.41412285,137.33,137.29,24.13232285]
[1743017290027,31.41412285,137.33,137.28,24.19532285]
[1743017291030,24.13232285,137.32,137.28,24.19532285]
[1743017291235,31.41492285,137.32,137.28,24.19532285]
[1743017291838,24.13232285,137.31,137.28,0.063]
[1743017293124,24.13232285,137.3,137.28,0.063]
[1743017293528,31.41612285,137.29,137.28,0.063]
[1743017293721,113.41612285,137.29,137.28,0.063]
[1743017296142,89.2838,137.29,137.28,0.063]
[1743017296643,113.41612285,137.29,137.28,0.063]
[1743017298444,89.2838,137.29,137.28,0.063]
[1743017299943,113.41612285,137.29,137.28,0.063]
[1743017300149,89.2838,137.29,137.28,0.063]
[1743017300353,82.0,137.29,137.28,0.063]
[1743017300554,82.0,137.31,137.28,24.19532285]
[1743017300844,82.0,137.31,137.29,24.13232285]
[1743017301346,82.0,137.31,137.3,24.13232285]
[1743017301928,82.0,137.31,137.29,24.13232285]
[1743017304027,82.0,137.33,137.3,24.13232285]
[1743017304243,82.0,137.33,137.32,24.13232285]
[1743017304442,82.0,137.33,137.31,24.13232285]
[1743017304934,89.2818,137.33,137.29,24.13232285]
[1743017305141,113.41412285,137.33,137.28,44.19532285]
[1743017305450,113.41412285,137.33,137.29,24.13232285]
[1743017305953,89.2818,137.33,137.29,24.13232285]
[1743017306457,113.41412285,137.33,137.28,20.063]
[1743017306642,113.41412285,137.33,137.28,44.19532285]
[1743017306844,7.2827,137.31,137.28,0.063]
[1743017307145,113.41472285,137.32,137.28,24.19532285]
[1743017307349,89.2824,137.32,137.29,24.13232285]
[1743017308353,89.2824,137.32,137.28,24.19532285]
[1743017313543,113.41472285,137.32,137.28,0.063]
[1743017314367,24.13232285,137.31,137.28,0.063]
[1743017314953,89.2824,137.32,137.29,24.13232285]
[1743017315348,89.2824,137.32,137.3,24.13232285]
[1743017315655,89.2824,137.32,137.29,24.13232285]
[1743017316064,7.2819,137.33,137.29,24.13232285]
[1743017316855,49.61852285,137.33,137.28,24.19532285]
[1743017317047,24.13232285,137.32,137.28,0.063]
[1743017317570,7.2827,137.31,137.28,0.063]
[1743017317962,7.2827,137.31,137.28,24.19532285]
[1743017318655,107.4896,137.31,137.28,0.063]
[1743017318850,24.13232285,137.3,137.28,0.063]
[1743017319765,7.2838,137.29,137.28,0.063]
[1743017321965,7.2833,137.3,137.28,0.063]
[1743017323970,31.41562285,137.3,137.28,0.063]
[1743017324370,7.2833,137.3,137.28,0.063]
[1743017325375,31.41562285,137.3,137.28,0.063]
[1743017325775,113.41612285,137.29,137.28,0.063]
[1743017325981,132.20793328,137.29,137.27,0.063]
[1743017326183,24.13232285,137.28,137.27,0.063]
[1743017327679,31.41662285,137.28,137.27,0.063]
[1743017328465,50.20843328,137.28,137.27,0.0001]
[1743017328659,75.88325613,137.28,137.27,0.0001]
[1743017329179,51.75093328,137.28,137.27,0.0001]
[1743017330962,75.88325613,137.28,137.27,0.0001]
[1743017331169,18.79181043,137.27,137.25,0.0001]
[1743017331477,131.66413328,137.26,137.25,0.0001]
[1743017332170,138.94953328,137.26,137.25,0.0001]
[1743017336096,132.20953328,137.26,137.25,0.0001]
[1743017336279,138.94953328,137.26,137.25,0.0001]
[1743017336775,56.94953328,137.26,137.25,0.0001]
[1743017338067,38.15772285,137.26,137.25,0.0001]
[1743017338570,31.41772285,137.26,137.25,0.0001]
[1743017339384,7.2854,137.26,137.25,0.0001]
[1743017340201,31.41772285,137.26,137.25,0.0001]
[1743017340688,7.2854,137.26,137.25,0.0001]
[1743017344069,14.0251,137.27,137.25,0.0001]
[1743017344388,24.13232285,137.28,137.25,0.0001]
[1743017344579,30.87232285,137.28,137.25,0.0001]
[1743017345392,38.15702285,137.28,137.25,0.0001]
[1743017345995,82.0,137.27,137.25,0.0001]
[1743017346171,82.0,137.27,137.26,24.13232285]
[1743017346595,82.0,137.27,137.25,24.13242285]
[1743017348573,82.0,137.27,137.25,31.41832285]
[1743017348892,82.0,137.27,137.25,24.13242285]
[1743017349898,82.0,137.27,137.26,24.13232285]
[1743017350198,82.0,137.29,137.26,31.41762285]
[1743017350395,82.0,137.29,137.27,24.13232285]
[1743017350696,89.2839,137.29,137.26,24.13232285]
[1743017350909,15.48787658,137.28,137.25,0.0001]
[1743017351104,104.77177658,137.29,137.25,0.0001]
[1743017351290,82.0,137.29,137.26,15.48787658]
[1743017351472,82.0,137.29,137.25,7.2859]
[1743017351674,82.0,137.29,137.26,15.48787658]
[1743017353110,89.2839,137.29,137.26,15.48787658]
[1743017354079,82.0,137.29,137.26,15.48787658]
[1743017355903,82.0,137.29,137.26,22.77327658]
[1743017356511,82.0,137.29,137.26,15.48787658]
[1743017356713,89.2838,137.29,137.26,15.48787658]
[1743017357214,89.2838,137.29,137.26,20.0]
[1743017357380,15.48787658,137.27,137.25,0.0001]
[1743017357579,15.48787658,137.26,137.25,0.0001]
[1743017358288,6.72,137.27,137.25,0.0001]
[1743017358493,6.72,137.27,137.25,15.48797658]
[1743017358981,22.77167658,137.29,137.25,15.48797658]
[1743017359185,22.77167658,137.29,137.25,0.0001]
[1743017360675,22.77167658,137.29,137.25,15.48797658]
[1743017360881,31.47862331,137.29,137.25,24.19492331]
[1743017362781,31.47862331,137.29,137.25,0.0001]
[1743017363191,82.0,137.28,137.25,0.0001]
[1743017363606,89.2848,137.28,137.25,24.19492331]
[1743017363907,82.0,137.28,137.25,24.19492331]
[1743017364101,82.0,137.28,137.26,24.19482331]
[1743017365005,82.0,137.28,137.27,24.19482331]
[1743017365205,96.0336,137.3,137.27,24.19482331]
[1743017365398,82.0,137.29,137.27,24.19482331]
[1743017366501,82.03,137.29,137.27,24.19482331]
[1743017367209,82.03,137.29,137.26,24.19482331]
[1743017370619,89.3138,137.29,137.26,24.19482331]
[1743017371617,89.3138,137.29,137.25,31.48072331]
[1743017372225,82.03,137.29,137.25,31.48072331]
[1743017372818,82.03,137.29,137.26,24.19482331]
[1743017374097,89.3138,137.29,137.26,24.19482331]
[1743017374811,89.3138,137.29,137.25,31.48072331]
[1743017375117,89.3138,137.29,137.25,24.19492331]
[1743017377218,82.03,137.29,137.25,31.48082331]
[1743017377422,82.03,137.29,137.26,24.19482331]
[1743017377918,89.3138,137.29,137.26,24.19482331]
[1743017378604,82.03,137.29,137.26,24.19482331]
[1743017379823,89.3138,137.29,137.26,24.19482331]
[1743017380215,82.03,137.29,137.26,24.19482331]
[1743017380719,89.3138,137.29,137.26,24.19482331]
[1743017381221,82.03,137.29,137.26,24.19482331]
[1743017381843,89.3138,137.29,137.26,24.19482331]
[1743017382430,113.50862331,137.29,137.25,0.0001]
[1743017382725,24.19482331,137.27,137.25,0.0001]
[1743017382900,82.0,137.26,137.25,0.0001]
[1743017384031,89.2854,137.26,137.25,0.0001]
[1743017387811,82.0,137.26,137.25,0.0001]
[1743017388024,82.0,137.28,137.25,15.49027719]
[1743017388225,82.0,137.28,137.26,15.49017719]
[1743017388226,89.2846,137.28,137.26,15.49017719]
[1743017388701,89.2846,137.28,137.25,15.49027719]
[1743017390333,89.2846,137.28,137.25,0.0001]
[1743017390543,122.98567719,137.28,137.25,0.0001]
[1743017390724,15.49017719,137.27,137.25,0.0001]
[1743017392420,89.2854,137.26,137.25,0.0001]
[1743017392822,85.665105,137.26,137.25,0.0001]
[1743017396869,101.15528219,137.26,137.25,0.0001]
[1743017397018,22.77557719,137.26,137.25,0.0001]
[1743017398147,7.2854,137.26,137.25,0.0001]
[1743017400455,6.72,137.27,137.25,15.49027719]
[1743017400635,6.72,137.27,137.25,0.0001]
[1743017400847,0.03,137.26,137.25,0.0001]
[1743017401227,15.52017719,137.26,137.25,0.0001]
[1743017401755,0.03,137.26,137.25,0.0001]
[1743017404663,15.52017719,137.26,137.25,0.0001]
[1743017405342,35.88198762,137.26,137.25,0.0001]
[1743017406626,43.16738762,137.26,137.25,0.0001]
[1743017409052,49.44688762,137.26,137.25,0.0001]
[1743017409240,100.79181043,137.25,137.21,0.063]
[1743017409544,34.28198762,137.22,137.21,0.063]
[1743017409749,15.49017719,137.23,137.21,0.063]
[1743017409968,15.49017719,137.22,137.21,0.063]
[1743017410864,22.77767719,137.22,137.21,0.063]
[1743017414633,7.2875,137.22,137.21,0.063]
[1743017415459,15.49017719,137.22,137.21,0.063]
[1743017417659,22.77767719,137.22,137.21,0.063]
[1743017417856,7.2875,137.22,137.21,0.063]
[1743017418250,0.03,137.26,137.21,15.55317719]
[1743017418553,89.2859,137.25,137.22,15.49017719]
[1743017418959,82.0,137.25,137.23,15.49017719]
[1743017419142,82.0,137.25,137.24,15.49017719]
[1743017423067,82.0,137.25,137.23,15.49017719]
[1743017423368,104.21017719,137.24,137.21,0.063]
[1743017423541,15.49017719,137.22,137.21,0.063]
[1743017424040,7.2875,137.22,137.21,0.063]
[1743017424369,89.2871,137.23,137.21,0.063]
[1743017425266,82.0,137.23,137.21,15.55317719]
[1743017425860,82.0,137.23,137.22,0.063]
[1743017426160,89.287,137.23,137.22,0.063]
[1743017427054,82.0,137.23,137.22,0.063]
[1743017428141,82.0,137.23,137.22,15.55317719]
[1743017428349,82.0,137.23,137.22,22.84067719]
[1743017428567,82.0,137.23,137.22,29.03457719]
[1743017428867,82.0,137.23,137.22,21.74707719]
[1743017429966,82.0,137.23,137.22,0.063]
[1743017430179,104.77717719,137.23,137.22,0.063]
[1743017430566,89.287,137.23,137.22,0.063]
[1743017431079,22.77717719,137.23,137.22,0.063]
[1743017431569,14.007,137.23,137.22,0.063]
[1743017431965,6.72,137.23,137.22,0.063]
[1743017432470,6.72,137.23,137.22,15.55317719]
[1743017432766,6.72,137.23,137.22,0.063]
[1743017433266,6.72,137.23,137.22,24.27020859]
[1743017433664,82.0,137.25,137.22,24.27020859]
[1743017433857,82.0,137.25,137.23,24.20720859]
[1743017435271,82.0,137.25,137.22,24.27020859]
[1743017435470,24.20720859,137.24,137.22,0.063]
[1743017435770,131.70820859,137.25,137.22,0.063]
[1743017436248,89.2861,137.25,137.22,24.27020859]
[1743017436567,89.2861,137.25,137.22,0.063]
[1743017437459,24.20720859,137.24,137.22,0.063]
[1743017437952,24.20720859,137.23,137.22,0.063]
[1743017438772,31.49420859,137.23,137.22,0.063]
[1743017439485,7.287,137.23,137.22,0.063]
[1743017446383,7.2867,137.24,137.22,0.063]
[1743017451084,7.3162,137.25,137.22,0.063]
[1743017451466,31.52340859,137.25,137.22,0.063]
[1743017452477,7.3162,137.25,137.22,0.063]
[1743017453287,31.52340859,137.25,137.22,0.063]
[1743017453967,24.20720859,137.24,137.22,0.063]
[1743017454369,31.49420859,137.23,137.22,0.063]
[1743017454966,22.78597449,137.23,137.22,0.063]
[1743017455780,7.287,137.23,137.22,0.063]
[1743017456161,22.78597449,137.23,137.22,0.063]
[1743017456360,7.2867,137.24,137.22,0.063]
[1743017456589,22.78567449,137.24,137.22,0.063]
[1743017457790,7.2867,137.24,137.22,0.063]
[1743017458695,22.81517449,137.25,137.22,0.063]
[1743017459988,15.49897449,137.24,137.22,0.063]
[1743017460582,15.49897449,137.23,137.22,0.063]
[1743017461290,34.29078492,137.24,137.22,0.063]
[1743017461592,15.52897449,137.25,137.22,0.063]
[1743017461793,0.03,137.25,137.22,15.56197449]
[1743017461999,82.0,137.24,137.22,15.56197449]
[1743017462780,82.0,137.24,137.22,0.063]
[1743017464098,89.2865,137.24,137.22,0.063]
[1743017464985,15.49897449,137.23,137.22,0.063]
[1743017465901,22.78597449,137.23,137.22,0.063]
[1743017466401,0.03,137.25,137.22,15.56197449]
[1743017466402,82.03,137.25,137.22,15.56197449]
[1743017466696,82.03,137.25,137.23,15.49897449]
[1743017466903,82.03,137.25,137.22,15.56197449]
[1743017467603,89.3159,137.25,137.22,15.56197449]
[1743017469504,82.03,137.25,137.22,22.84947449]
[1743017470290,82.03,137.25,137.23,15.49897449]
[1743017470490,82.03,137.25,137.24,15.49897449]
[1743017471304,0.03,137.25,137.24,15.49897449]
[1743017474616,0.03,137.25,137.24,15.56197449]
[1743017477418,0.03,137.25,137.24,22.84847449]
[1743017477585,0.03,137.29,137.25,0.28432314]
[1743017477913,0.03,137.3,137.29,20.0]
[1743017478118,0.03,137.3,137.29,35.49897449]
[1743017478715,0.03,137.3,137.29,42.78277449]
[1743017479488,11.04717753,137.35,137.33,20.0]